[Event "Titled Tuesday Blitz November 14 Early 2023"]
[White "Rosen, Eric"]
[Black "Reprintsev, Alexander"]
[WhiteFideId "2032562"]
[BlackFideId "14100541"]
[WhiteElo "2785"]
[BlackElo "2543"]
[Result "0-1"]
[Round "5"]
[TimeControl "180+1"]
[Date "2023.11.14"]
[WhiteClock "0:00:00"]
[BlackClock "0:01:48"]
[Board "71"]

1. e4 {[%clk 0:03:00]}  e5 {[%clk 0:02:59]} 2. Nf3 {[%clk 0:02:57]}  Nc6 {[%clk 0:02:59]} 3. Nc3 {[%clk 0:02:55]}  Nf6 {[%clk 0:02:59]} 4. d4 {[%clk 0:02:50]}  exd4 {[%clk 0:02:59]} 5. Nxd4 {[%clk 0:02:50]}  Bb4 {[%clk 0:02:59]} 6. Nxc6 {[%clk 0:02:47]}  bxc6 {[%clk 0:02:59]} 7. Bd3 {[%clk 0:02:47]}  d5 {[%clk 0:02:59]} 8. Bd2 {[%clk 0:02:44]}  O-O {[%clk 0:02:56]} 9. O-O {[%clk 0:02:44]}  Bg4 {[%clk 0:02:53]} 10. f3 {[%clk 0:02:38]}  Be6 {[%clk 0:02:53]} 11. e5 {[%clk 0:02:36]}  Nd7 {[%clk 0:02:49]} 12. f4 {[%clk 0:02:35]}  f5 {[%clk 0:02:49]} 13. Kh1 {[%clk 0:02:25]}  c5 {[%clk 0:02:47]} 14. a3 {[%clk 0:02:23]}  Bxc3 {[%clk 0:02:47]} 15. Bxc3 {[%clk 0:02:19]}  c4 {[%clk 0:02:47]} 16. Be2 {[%clk 0:02:15]}  a5 {[%clk 0:02:45]} 17. Qe1 {[%clk 0:02:03]}  c6 {[%clk 0:02:43]} 18. h3 {[%clk 0:01:53]}  Nc5 {[%clk 0:02:42]} 19. Bf3 {[%clk 0:01:51]}  Qc7 {[%clk 0:02:24]} 20. Bd4 {[%clk 0:01:46]}  Ne4 {[%clk 0:02:23]} 21. Bxe4 {[%clk 0:01:47]}  fxe4 {[%clk 0:02:22]} 22. g4 {[%clk 0:01:42]}  c5 {[%clk 0:02:22]} 23. Bg1 {[%clk 0:01:27]}  Rab8 {[%clk 0:02:21]} 24. f5 {[%clk 0:01:21]}  Bc8 {[%clk 0:02:19]} 25. Qc3 {[%clk 0:01:17]}  d4 {[%clk 0:02:15]} 26. Qxc4+ {[%clk 0:01:16]}  Kh8 {[%clk 0:02:15]} 27. Bh2 {[%clk 0:01:08]}  e3 {[%clk 0:02:10]} 28. Bg3 {[%clk 0:00:42]}  Rxb2 {[%clk 0:02:05]} 29. Kh2 {[%clk 0:00:27]}  Qc6 {[%clk 0:02:00]} 30. Rg1 {[%clk 0:00:20]}  Ba6 {[%clk 0:01:58]} 31. Qe6 {[%clk 0:00:10]}  Qxe6 {[%clk 0:01:58]} 32. fxe6 {[%clk 0:00:11]}  Rxc2+ {[%clk 0:01:59]} 33. Rg2 {[%clk 0:00:12]}  Rxg2+ {[%clk 0:01:56]} 34. Kxg2 {[%clk 0:00:13]}  c4 {[%clk 0:01:53]} 35. e7 {[%clk 0:00:06]}  Re8 {[%clk 0:01:52]} 36. Rf1 {[%clk 0:00:06]}  Kg8 {[%clk 0:01:52]} 37. Bh4 {[%clk 0:00:03]}  c3 {[%clk 0:01:51]} 38. Kf3 {[%clk 0:00:02]}  Bxf1 {[%clk 0:01:48]} 39. Ke4 {[%clk 0:00:00]}  c2 {[%clk 0:01:48]} 0-1


[Site "https://www.chess.com"]

[Event "Titled Tuesday Blitz November 14 Early 2023"]
[White "Nilsen, Tobias Lang"]
[Black "Sokolovsky, Yahli"]
[WhiteFideId "1521624"]
[BlackFideId "2820242"]
[WhiteElo "2533"]
[BlackElo "2758"]
[Result "0-1"]
[Round "5"]
[TimeControl "180+1"]
[Date "2023.11.14"]
[WhiteClock "0:00:07"]
[BlackClock "0:00:04"]
[Board "72"]

1. e4 {[%clk 0:03:00]}  d6 {[%clk 0:02:59]} 2. d4 {[%clk 0:03:01]}  g6 {[%clk 0:03:00]} 3. Nc3 {[%clk 0:03:01]}  Bg7 {[%clk 0:03:00]} 4. Be3 {[%clk 0:03:01]}  a6 {[%clk 0:03:01]} 5. h4 {[%clk 0:02:59]}  h6 {[%clk 0:02:51]} 6. h5 {[%clk 0:02:56]}  g5 {[%clk 0:02:50]} 7. a4 {[%clk 0:02:56]}  e6 {[%clk 0:02:41]} 8. Qd2 {[%clk 0:02:52]}  f5 {[%clk 0:02:35]} 9. f4 {[%clk 0:02:49]}  g4 {[%clk 0:02:25]} 10. Bd3 {[%clk 0:02:48]}  Nf6 {[%clk 0:02:22]} 11. Nge2 {[%clk 0:02:47]}  Nc6 {[%clk 0:02:12]} 12. Ng3 {[%clk 0:02:46]}  Ne7 {[%clk 0:02:10]} 13. O-O-O {[%clk 0:02:33]}  b5 {[%clk 0:02:06]} 14. exf5 {[%clk 0:02:28]}  exf5 {[%clk 0:02:02]} 15. axb5 {[%clk 0:02:27]}  axb5 {[%clk 0:02:02]} 16. Bxb5+ {[%clk 0:02:23]}  c6 {[%clk 0:02:01]} 17. Ba4 {[%clk 0:02:19]}  Nfd5 {[%clk 0:01:51]} 18. Nxd5 {[%clk 0:02:12]}  Rxa4 {[%clk 0:01:46]} 19. Nc3 {[%clk 0:02:12]}  Ra1+ {[%clk 0:01:39]} 20. Nb1 {[%clk 0:02:12]}  Be6 {[%clk 0:01:34]} 21. Qc3 {[%clk 0:01:38]}  Qa8 {[%clk 0:01:04]} 22. Kd2 {[%clk 0:00:59]}  Nd5 {[%clk 0:00:57]} 23. Qd3 {[%clk 0:00:55]}  O-O {[%clk 0:00:40]} 24. Nc3 {[%clk 0:00:41]}  Rxd1+ {[%clk 0:00:40]} 25. Rxd1 {[%clk 0:00:41]}  Nb4 {[%clk 0:00:41]} 26. Qf1 {[%clk 0:00:36]}  c5 {[%clk 0:00:42]} 27. dxc5 {[%clk 0:00:27]}  dxc5 {[%clk 0:00:42]} 28. Bxc5 {[%clk 0:00:27]}  Rd8+ {[%clk 0:00:43]} 29. Ke1 {[%clk 0:00:26]}  Rxd1+ {[%clk 0:00:06]} 30. Nxd1 {[%clk 0:00:27]}  Nxc2+ {[%clk 0:00:06]} 31. Kf2 {[%clk 0:00:28]}  Qd5 {[%clk 0:00:05]} 32. Be3 {[%clk 0:00:11]}  Bd7 {[%clk 0:00:05]} 33. Nc3 {[%clk 0:00:09]}  Qe6 {[%clk 0:00:06]} 34. Qd3 {[%clk 0:00:07]}  Nxe3 {[%clk 0:00:05]} 35. Qxe3 {[%clk 0:00:08]}  Qc4 {[%clk 0:00:05]} 36. Nge2 {[%clk 0:00:07]}  Bc6 {[%clk 0:00:04]} 37. Kg3 {[%clk 0:00:06]}  Qf7 {[%clk 0:00:04]} 38. Qd2 {[%clk 0:00:06]}  Qxh5 {[%clk 0:00:03]} 39. b4 {[%clk 0:00:06]}  Qf7 {[%clk 0:00:03]} 40. b5 {[%clk 0:00:06]}  Be8 {[%clk 0:00:03]} 41. b6 {[%clk 0:00:06]}  Qb7 {[%clk 0:00:04]} 42. Qd6 {[%clk 0:00:06]}  Bc6 {[%clk 0:00:04]} 43. Nd4 {[%clk 0:00:06]}  Bxd4 {[%clk 0:00:02]} 44. Qxd4 {[%clk 0:00:07]}  Bxg2 {[%clk 0:00:03]} 45. Nb5 {[%clk 0:00:06]}  Qf3+ {[%clk 0:00:03]} 46. Kh4 {[%clk 0:00:07]}  Qh3# {[%clk 0:00:04]} 0-1


[Site "https://www.chess.com"]

[Event "Titled Tuesday Blitz November 14 Early 2023"]
[White "LangesNasenhaar"]
[Black "djokovic74"]
[WhiteElo "2451"]
[BlackElo "2725"]
[Result "0-1"]
[Round "5"]
[TimeControl "180+1"]
[Date "2023.11.14"]
[WhiteClock "0:00:01"]
[BlackClock "0:00:08"]
[Board "76"]

1. d4 {[%clk 0:03:00]}  e6 {[%clk 0:03:00]} 2. Nc3 {[%clk 0:03:01]}  Nf6 {[%clk 0:03:00]} 3. Bf4 {[%clk 0:03:00]}  Bb4 {[%clk 0:02:59]} 4. Qd3 {[%clk 0:02:58]}  O-O {[%clk 0:02:36]} 5. O-O-O {[%clk 0:02:40]}  Bxc3 {[%clk 0:02:33]} 6. Qxc3 {[%clk 0:02:40]}  Nd5 {[%clk 0:02:33]} 7. Qg3 {[%clk 0:02:40]}  Nxf4 {[%clk 0:02:34]} 8. Qxf4 {[%clk 0:02:41]}  d6 {[%clk 0:02:27]} 9. e4 {[%clk 0:02:40]}  Nd7 {[%clk 0:02:27]} 10. Bd3 {[%clk 0:02:37]}  e5 {[%clk 0:02:21]} 11. Qe3 {[%clk 0:02:34]}  exd4 {[%clk 0:02:16]} 12. Qxd4 {[%clk 0:02:34]}  Qf6 {[%clk 0:02:17]} 13. Qxf6 {[%clk 0:02:33]}  Nxf6 {[%clk 0:02:18]} 14. f3 {[%clk 0:02:25]}  a5 {[%clk 0:02:16]} 15. Ne2 {[%clk 0:02:23]}  Re8 {[%clk 0:02:07]} 16. Nc3 {[%clk 0:02:13]}  Bd7 {[%clk 0:02:06]} 17. a4 {[%clk 0:02:04]}  Re5 {[%clk 0:02:01]} 18. g4 {[%clk 0:01:51]}  g5 {[%clk 0:01:37]} 19. h4 {[%clk 0:01:49]}  h6 {[%clk 0:01:36]} 20. hxg5 {[%clk 0:01:32]}  hxg5 {[%clk 0:01:36]} 21. Bc4 {[%clk 0:01:30]}  Kg7 {[%clk 0:01:30]} 22. Rh2 {[%clk 0:01:22]}  Bc6 {[%clk 0:00:55]} 23. Rdh1 {[%clk 0:01:17]}  Rc5 {[%clk 0:00:53]} 24. b3 {[%clk 0:01:10]}  Re5 {[%clk 0:00:51]} 25. Rh6 {[%clk 0:00:41]}  Bd7 {[%clk 0:00:34]} 26. Nd5 {[%clk 0:00:23]}  Nxd5 {[%clk 0:00:31]} 27. Rh7+ {[%clk 0:00:22]}  Kf6 {[%clk 0:00:28]} 28. Bxd5 {[%clk 0:00:16]}  Be6 {[%clk 0:00:22]} 29. Bxb7 {[%clk 0:00:11]}  Rb8 {[%clk 0:00:23]} 30. Bc6 {[%clk 0:00:11]}  Ke7 {[%clk 0:00:23]} 31. Bb5 {[%clk 0:00:11]}  Rc5 {[%clk 0:00:20]} 32. Kb2 {[%clk 0:00:09]}  d5 {[%clk 0:00:17]} 33. Bd3 {[%clk 0:00:08]}  d4 {[%clk 0:00:14]} 34. R7h5 {[%clk 0:00:06]}  f6 {[%clk 0:00:11]} 35. Rh7+ {[%clk 0:00:06]}  Kd6 {[%clk 0:00:11]} 36. R7h6 {[%clk 0:00:06]}  Ke5 {[%clk 0:00:11]} 37. Rh7 {[%clk 0:00:05]}  Rc3 {[%clk 0:00:11]} 38. Ka2 {[%clk 0:00:03]}  c5 {[%clk 0:00:09]} 39. Rc7 {[%clk 0:00:02]}  c4 {[%clk 0:00:07]} 40. Bxc4 {[%clk 0:00:01]}  Rxc2+ {[%clk 0:00:06]} 41. Ka3 {[%clk 0:00:02]}  Bxc4 {[%clk 0:00:06]} 42. Rxc4 {[%clk 0:00:03]}  Rxc4 {[%clk 0:00:06]} 43. bxc4 {[%clk 0:00:03]}  d3 {[%clk 0:00:07]} 44. Rd1 {[%clk 0:00:03]}  Kd4 {[%clk 0:00:07]} 45. c5 {[%clk 0:00:04]}  Kc3 {[%clk 0:00:07]} 46. c6 {[%clk 0:00:04]}  d2 {[%clk 0:00:08]} 47. Ka2 {[%clk 0:00:03]}  Kc2 {[%clk 0:00:08]} 48. Rf1 {[%clk 0:00:03]}  d1=Q {[%clk 0:00:08]} 49. Rxd1 {[%clk 0:00:01]}  Kxd1 {[%clk 0:00:08]} 0-1


[Site "https://www.chess.com"]

[Event "Titled Tuesday Blitz November 14 Early 2023"]
[White "Grossboss19"]
[Black "Yeletsky, Ivan"]
[BlackFideId "24180327"]
[WhiteElo "2513"]
[BlackElo "2898"]
[Result "0-1"]
[Round "5"]
[TimeControl "180+1"]
[Date "2023.11.14"]
[WhiteClock "0:00:00"]
[BlackClock "0:00:04"]
[Board "78"]

1. d4 {[%clk 0:02:50]}  Nf6 {[%clk 0:02:58]} 2. c4 {[%clk 0:02:50]}  Nc6 {[%clk 0:02:58]} 3. Nf3 {[%clk 0:02:49]}  e6 {[%clk 0:02:58]} 4. Nc3 {[%clk 0:02:48]}  Bb4 {[%clk 0:02:58]} 5. e3 {[%clk 0:02:48]}  d6 {[%clk 0:02:58]} 6. Bd2 {[%clk 0:02:47]}  O-O {[%clk 0:02:58]} 7. Qc2 {[%clk 0:02:44]}  e5 {[%clk 0:02:57]} 8. a3 {[%clk 0:02:44]}  exd4 {[%clk 0:02:53]} 9. axb4 {[%clk 0:02:40]}  Nxb4 {[%clk 0:02:53]} 10. Qb3 {[%clk 0:02:40]}  dxc3 {[%clk 0:02:54]} 11. Bxc3 {[%clk 0:02:39]}  Na6 {[%clk 0:02:50]} 12. Qc2 {[%clk 0:02:37]}  Nc5 {[%clk 0:02:50]} 13. b4 {[%clk 0:02:37]}  Nce4 {[%clk 0:02:50]} 14. Bb2 {[%clk 0:02:36]}  Re8 {[%clk 0:02:39]} 15. Bd3 {[%clk 0:02:34]}  c5 {[%clk 0:02:33]} 16. b5 {[%clk 0:02:29]}  b6 {[%clk 0:02:29]} 17. O-O {[%clk 0:02:22]}  Bb7 {[%clk 0:02:29]} 18. Rfd1 {[%clk 0:02:21]}  Qe7 {[%clk 0:02:28]} 19. Ra3 {[%clk 0:02:15]}  Ng4 {[%clk 0:02:22]} 20. Bxe4 {[%clk 0:02:06]}  Bxe4 {[%clk 0:02:21]} 21. Qc3 {[%clk 0:02:07]}  f6 {[%clk 0:02:15]} 22. Nd2 {[%clk 0:02:03]}  Bb7 {[%clk 0:02:02]} 23. Rda1 {[%clk 0:02:02]}  d5 {[%clk 0:01:47]} 24. h3 {[%clk 0:01:49]}  Ne5 {[%clk 0:01:37]} 25. Rxa7 {[%clk 0:01:43]}  Rxa7 {[%clk 0:01:23]} 26. Rxa7 {[%clk 0:01:43]}  Ra8 {[%clk 0:01:20]} 27. Rxa8+ {[%clk 0:01:38]}  Bxa8 {[%clk 0:01:21]} 28. Qa3 {[%clk 0:01:36]}  Qb7 {[%clk 0:01:16]} 29. Bxe5 {[%clk 0:01:28]}  dxc4 {[%clk 0:01:07]} 30. f3 {[%clk 0:01:15]}  fxe5 {[%clk 0:01:07]} 31. Nxc4 {[%clk 0:01:16]}  e4 {[%clk 0:01:03]} 32. Nxb6 {[%clk 0:01:14]}  Qxb6 {[%clk 0:00:42]} 33. Qxa8+ {[%clk 0:01:09]}  Kf7 {[%clk 0:00:43]} 34. Qd5+ {[%clk 0:01:08]}  Kf6 {[%clk 0:00:39]} 35. Qxe4 {[%clk 0:00:38]}  Qxb5 {[%clk 0:00:39]} 36. Qxh7 {[%clk 0:00:38]}  c4 {[%clk 0:00:38]} 37. Qh4+ {[%clk 0:00:36]}  Kf7 {[%clk 0:00:37]} 38. Qd4 {[%clk 0:00:30]}  Qb3 {[%clk 0:00:32]} 39. Qd5+ {[%clk 0:00:27]}  Kf8 {[%clk 0:00:33]} 40. Kf2 {[%clk 0:00:21]}  Qb2+ {[%clk 0:00:31]} 41. Ke1 {[%clk 0:00:19]}  c3 {[%clk 0:00:32]} 42. Qf5+ {[%clk 0:00:14]}  Kg8 {[%clk 0:00:28]} 43. Qe6+ {[%clk 0:00:14]}  Kf8 {[%clk 0:00:29]} 44. Qc8+ {[%clk 0:00:13]}  Kf7 {[%clk 0:00:29]} 45. Qd7+ {[%clk 0:00:13]}  Kf8 {[%clk 0:00:29]} 46. Qf5+ {[%clk 0:00:12]}  Ke7 {[%clk 0:00:29]} 47. Qe5+ {[%clk 0:00:12]}  Kd7 {[%clk 0:00:28]} 48. Qxg7+ {[%clk 0:00:11]}  Kc6 {[%clk 0:00:28]} 49. Qg6+ {[%clk 0:00:10]}  Kb5 {[%clk 0:00:29]} 50. Qd3+ {[%clk 0:00:10]}  Kb4 {[%clk 0:00:29]} 51. Qd6+ {[%clk 0:00:09]}  Kb3 {[%clk 0:00:28]} 52. Qd5+ {[%clk 0:00:08]}  Kb4 {[%clk 0:00:26]} 53. Qb7+ {[%clk 0:00:08]}  Ka3 {[%clk 0:00:18]} 54. Qa6+ {[%clk 0:00:08]}  Kb3 {[%clk 0:00:19]} 55. Qb5+ {[%clk 0:00:08]}  Ka2 {[%clk 0:00:15]} 56. Qc4+ {[%clk 0:00:05]}  Kb1 {[%clk 0:00:13]} 57. Qd3+ {[%clk 0:00:03]}  c2 {[%clk 0:00:14]} 58. Kf2 {[%clk 0:00:01]}  Ka1 {[%clk 0:00:10]} 59. Qa6+ {[%clk 0:00:01]}  Qa2 {[%clk 0:00:09]} 60. Qf6+ {[%clk 0:00:01]}  Kb1 {[%clk 0:00:09]} 61. Qf5 {[%clk 0:00:02]}  Kb2 {[%clk 0:00:04]} 62. Qb5+ {[%clk 0:00:01]}  Kc3 {[%clk 0:00:04]} 63. Qc5+ {[%clk 0:00:00]}  Kd2 {[%clk 0:00:04]} 0-1


[Site "https://www.chess.com"]

[Event "Titled Tuesday Blitz November 14 Early 2023"]
[White "Novik, Maxim"]
[Black "Weetik, Vjacheslav"]
[WhiteFideId "4102924"]
[BlackFideId "4153472"]
[WhiteElo "2513"]
[BlackElo "2819"]
[Result "1-0"]
[Round "5"]
[TimeControl "180+1"]
[Date "2023.11.14"]
[WhiteClock "0:00:29"]
[BlackClock "0:00:05"]
[Board "79"]

1. e4 {[%clk 0:03:00]}  c6 {[%clk 0:02:59]} 2. d4 {[%clk 0:02:56]}  d5 {[%clk 0:02:59]} 3. Nc3 {[%clk 0:02:56]}  dxe4 {[%clk 0:03:00]} 4. Nxe4 {[%clk 0:02:56]}  Nf6 {[%clk 0:03:00]} 5. Nxf6+ {[%clk 0:02:56]}  exf6 {[%clk 0:03:01]} 6. c3 {[%clk 0:02:56]}  Bd6 {[%clk 0:03:02]} 7. Bd3 {[%clk 0:02:57]}  O-O {[%clk 0:03:03]} 8. Ne2 {[%clk 0:02:57]}  Re8 {[%clk 0:03:04]} 9. O-O {[%clk 0:02:57]}  Nd7 {[%clk 0:03:03]} 10. Bf4 {[%clk 0:02:57]}  Nf8 {[%clk 0:03:03]} 11. Qd2 {[%clk 0:02:57]}  Ng6 {[%clk 0:03:02]} 12. Bxd6 {[%clk 0:02:57]}  Qxd6 {[%clk 0:03:03]} 13. Rfe1 {[%clk 0:02:57]}  Be6 {[%clk 0:02:59]} 14. Ng3 {[%clk 0:02:57]}  Nf4 {[%clk 0:02:55]} 15. Ne4 {[%clk 0:02:57]}  Qc7 {[%clk 0:02:55]} 16. g3 {[%clk 0:02:50]}  Nxd3 {[%clk 0:02:40]} 17. Qxd3 {[%clk 0:02:43]}  b6 {[%clk 0:02:38]} 18. f3 {[%clk 0:02:43]}  Re7 {[%clk 0:02:35]} 19. Re3 {[%clk 0:02:43]}  Rd8 {[%clk 0:02:32]} 20. Qe2 {[%clk 0:02:36]}  c5 {[%clk 0:02:25]} 21. dxc5 {[%clk 0:02:34]}  bxc5 {[%clk 0:02:25]} 22. Rd1 {[%clk 0:02:21]}  Rxd1+ {[%clk 0:02:14]} 23. Qxd1 {[%clk 0:02:21]}  Bxa2 {[%clk 0:02:13]} 24. Rd3 {[%clk 0:02:03]}  g6 {[%clk 0:00:54]} 25. b3 {[%clk 0:01:44]}  Kg7 {[%clk 0:00:49]} 26. c4 {[%clk 0:01:41]}  Qe5 {[%clk 0:00:47]} 27. Rd5 {[%clk 0:01:25]}  Qb2 {[%clk 0:00:45]} 28. Rd2 {[%clk 0:01:11]}  Qxb3 {[%clk 0:00:43]} 29. Qa1 {[%clk 0:01:11]}  Qe3+ {[%clk 0:00:40]} 30. Rf2 {[%clk 0:01:07]}  Rxe4 {[%clk 0:00:26]} 31. fxe4 {[%clk 0:01:03]}  Bxc4 {[%clk 0:00:26]} 32. Qxf6+ {[%clk 0:01:03]}  Kg8 {[%clk 0:00:26]} 33. Qf4 {[%clk 0:00:54]}  Qd4 {[%clk 0:00:22]} 34. Kg2 {[%clk 0:00:53]}  a5 {[%clk 0:00:14]} 35. Rd2 {[%clk 0:00:52]}  Bd3 {[%clk 0:00:12]} 36. e5 {[%clk 0:00:41]}  Be4+ {[%clk 0:00:11]} 37. Kh3 {[%clk 0:00:41]}  Bf5+ {[%clk 0:00:11]} 38. Kh4 {[%clk 0:00:40]}  Qc3 {[%clk 0:00:06]} 39. g4 {[%clk 0:00:29]}  Be6 {[%clk 0:00:04]} 40. Rd8+ {[%clk 0:00:28]}  Kg7 {[%clk 0:00:04]} 41. Qf6+ {[%clk 0:00:28]}  Kh6 {[%clk 0:00:05]} 42. g5# {[%clk 0:00:29]} 1-0


[Site "https://www.chess.com"]

[Event "Titled Tuesday Blitz November 14 Early 2023"]
[White "Erzhanov, Arman"]
[Black "Suyarov, Mukhammadzokhid"]
[WhiteFideId "4138821"]
[BlackFideId "14210495"]
[WhiteElo "2506"]
[BlackElo "2777"]
[Result "0-1"]
[Round "5"]
[TimeControl "180+1"]
[Date "2023.11.14"]
[WhiteClock "0:01:23"]
[BlackClock "0:01:19"]
[Board "83"]

1. e4 {[%clk 0:03:00]}  e5 {[%clk 0:02:57]} 2. Nf3 {[%clk 0:02:59]}  Nf6 {[%clk 0:02:57]} 3. Nxe5 {[%clk 0:02:55]}  d6 {[%clk 0:02:56]} 4. Nc4 {[%clk 0:02:54]}  Nxe4 {[%clk 0:02:55]} 5. Nc3 {[%clk 0:02:54]}  Nxc3 {[%clk 0:02:51]} 6. dxc3 {[%clk 0:02:55]}  Be7 {[%clk 0:02:50]} 7. h3 {[%clk 0:02:53]}  O-O {[%clk 0:02:49]} 8. Bd3 {[%clk 0:02:53]}  d5 {[%clk 0:02:47]} 9. Ne3 {[%clk 0:02:53]}  c6 {[%clk 0:02:47]} 10. O-O {[%clk 0:02:53]}  g6 {[%clk 0:02:41]} 11. Re1 {[%clk 0:02:51]}  Bf6 {[%clk 0:02:39]} 12. Ng4 {[%clk 0:02:50]}  Bxg4 {[%clk 0:02:34]} 13. Qxg4 {[%clk 0:02:48]}  Nd7 {[%clk 0:02:34]} 14. Bh6 {[%clk 0:02:48]}  Ne5 {[%clk 0:02:32]} 15. Qd1 {[%clk 0:02:37]}  Re8 {[%clk 0:02:29]} 16. Bf1 {[%clk 0:02:35]}  Qb6 {[%clk 0:02:28]} 17. Rb1 {[%clk 0:02:32]}  Re6 {[%clk 0:02:16]} 18. Bf4 {[%clk 0:02:14]}  Rae8 {[%clk 0:02:13]} 19. Re3 {[%clk 0:02:12]}  Qa5 {[%clk 0:01:55]} 20. a3 {[%clk 0:02:10]}  Qa4 {[%clk 0:01:52]} 21. Bg3 {[%clk 0:02:08]}  h5 {[%clk 0:01:39]} 22. Qd2 {[%clk 0:01:49]}  Bg5 {[%clk 0:01:29]} 23. f4 {[%clk 0:01:31]}  Bxf4 {[%clk 0:01:23]} 24. Bxf4 {[%clk 0:01:31]}  Qxf4 {[%clk 0:01:23]} 25. Rbe1 {[%clk 0:01:31]}  Nf3+ {[%clk 0:01:19]} 26. Rxf3 {[%clk 0:01:23]}  Qxd2 {[%clk 0:01:19]} 0-1


[Site "https://www.chess.com"]

[Event "Titled Tuesday Blitz November 14 Early 2023"]
[White "Llorente Zaro, Alfonso"]
[Black "Sadovsky, Artem"]
[WhiteFideId "2254131"]
[BlackFideId "4155840"]
[WhiteElo "2766"]
[BlackElo "2504"]
[Result "1-0"]
[Round "5"]
[TimeControl "180+1"]
[Date "2023.11.14"]
[WhiteClock "0:00:19"]
[BlackClock "0:00:12"]
[Board "84"]

1. e4 {[%clk 0:02:53]}  g6 {[%clk 0:02:58]} 2. d4 {[%clk 0:02:53]}  Bg7 {[%clk 0:02:58]} 3. Nc3 {[%clk 0:02:52]}  c6 {[%clk 0:02:57]} 4. h4 {[%clk 0:02:45]}  d5 {[%clk 0:02:49]} 5. exd5 {[%clk 0:02:46]}  cxd5 {[%clk 0:02:49]} 6. h5 {[%clk 0:02:47]}  Nc6 {[%clk 0:02:49]} 7. Be3 {[%clk 0:02:43]}  Nh6 {[%clk 0:02:48]} 8. Bb5 {[%clk 0:02:26]}  Nf5 {[%clk 0:02:37]} 9. Nf3 {[%clk 0:02:23]}  Nxe3 {[%clk 0:02:25]} 10. fxe3 {[%clk 0:02:24]}  Bg4 {[%clk 0:02:25]} 11. h6 {[%clk 0:02:21]}  Bf6 {[%clk 0:02:25]} 12. Qd3 {[%clk 0:02:22]}  Bf5 {[%clk 0:02:22]} 13. e4 {[%clk 0:02:16]}  dxe4 {[%clk 0:02:20]} 14. Bxc6+ {[%clk 0:02:16]}  bxc6 {[%clk 0:02:18]} 15. Nxe4 {[%clk 0:02:16]}  O-O {[%clk 0:02:14]} 16. Nxf6+ {[%clk 0:02:07]}  exf6 {[%clk 0:02:15]} 17. Qc4 {[%clk 0:02:04]}  Qa5+ {[%clk 0:02:01]} 18. c3 {[%clk 0:02:02]}  Rfe8+ {[%clk 0:01:52]} 19. Kf2 {[%clk 0:02:01]}  Rab8 {[%clk 0:01:47]} 20. b4 {[%clk 0:02:00]}  Qa3 {[%clk 0:01:46]} 21. Rae1 {[%clk 0:01:30]}  Qb2+ {[%clk 0:01:43]} 22. Kg3 {[%clk 0:01:29]}  Be6 {[%clk 0:01:42]} 23. Qc5 {[%clk 0:01:24]}  Qxa2 {[%clk 0:00:58]} 24. Re3 {[%clk 0:01:17]}  Rec8 {[%clk 0:00:44]} 25. Qe7 {[%clk 0:01:14]}  Qd5 {[%clk 0:00:20]} 26. Qxf6 {[%clk 0:01:12]}  Qd6+ {[%clk 0:00:19]} 27. Re5 {[%clk 0:01:01]}  Qf8 {[%clk 0:00:20]} 28. Ng5 {[%clk 0:01:01]}  Bd5 {[%clk 0:00:17]} 29. Re7 {[%clk 0:00:55]}  Re8 {[%clk 0:00:11]} 30. Rhe1 {[%clk 0:00:55]}  Rxe7 {[%clk 0:00:12]} 31. Rxe7 {[%clk 0:00:55]}  Qxh6 {[%clk 0:00:12]} 32. Nxf7 {[%clk 0:00:46]}  Qf8 {[%clk 0:00:12]} 33. Qh8# {[%clk 0:00:19]} 1-0


[Site "https://www.chess.com"]

[Event "Titled Tuesday Blitz November 14 Early 2023"]
[White "Zomorrodian, Eilia"]
[Black "Sattarov, Bobir"]
[WhiteFideId "12551805"]
[BlackFideId "14203081"]
[WhiteElo "2490"]
[BlackElo "2741"]
[Result "0-1"]
[Round "5"]
[TimeControl "180+1"]
[Date "2023.11.14"]
[WhiteClock "0:00:05"]
[BlackClock "0:01:32"]
[Board "86"]

1. e4 {[%clk 0:02:52]}  e5 {[%clk 0:02:59]} 2. Bc4 {[%clk 0:02:50]}  Bc5 {[%clk 0:02:59]} 3. Nf3 {[%clk 0:02:50]}  Nc6 {[%clk 0:02:59]} 4. d3 {[%clk 0:02:50]}  h6 {[%clk 0:02:58]} 5. c3 {[%clk 0:02:51]}  Qf6 {[%clk 0:02:58]} 6. b4 {[%clk 0:02:49]}  Bb6 {[%clk 0:02:58]} 7. a4 {[%clk 0:02:49]}  a6 {[%clk 0:02:56]} 8. Qb3 {[%clk 0:02:46]}  Nge7 {[%clk 0:02:55]} 9. h3 {[%clk 0:02:42]}  d6 {[%clk 0:02:54]} 10. Be3 {[%clk 0:02:41]}  O-O {[%clk 0:02:54]} 11. O-O {[%clk 0:02:40]}  Bxh3 {[%clk 0:02:50]} 12. Bxb6 {[%clk 0:02:14]}  cxb6 {[%clk 0:02:50]} 13. Nbd2 {[%clk 0:02:10]}  Bd7 {[%clk 0:02:44]} 14. Rfe1 {[%clk 0:02:04]}  Ng6 {[%clk 0:02:44]} 15. Nf1 {[%clk 0:02:02]}  Nf4 {[%clk 0:02:43]} 16. Ng3 {[%clk 0:02:01]}  Ne7 {[%clk 0:02:36]} 17. Nh2 {[%clk 0:01:57]}  Neg6 {[%clk 0:02:35]} 18. d4 {[%clk 0:01:55]}  Nh4 {[%clk 0:02:32]} 19. Bf1 {[%clk 0:01:50]}  Rac8 {[%clk 0:02:31]} 20. Rad1 {[%clk 0:01:47]}  Be6 {[%clk 0:02:26]} 21. Qb2 {[%clk 0:01:38]}  Bc4 {[%clk 0:02:21]} 22. dxe5 {[%clk 0:01:26]}  dxe5 {[%clk 0:02:19]} 23. Bxc4 {[%clk 0:01:11]}  Rxc4 {[%clk 0:02:19]} 24. Rd7 {[%clk 0:01:11]}  Nfxg2 {[%clk 0:02:10]} 25. Red1 {[%clk 0:01:11]}  Nf4 {[%clk 0:02:01]} 26. Rxb7 {[%clk 0:00:59]}  Nh3+ {[%clk 0:02:01]} 27. Kf1 {[%clk 0:00:59]}  Rxc3 {[%clk 0:01:59]} 28. Nf5 {[%clk 0:00:23]}  Rc4 {[%clk 0:01:46]} 29. Qb3 {[%clk 0:00:09]}  Nxf5 {[%clk 0:01:43]} 30. exf5 {[%clk 0:00:08]}  Qxf5 {[%clk 0:01:40]} 31. Rd2 {[%clk 0:00:07]}  Rc1+ {[%clk 0:01:39]} 32. Kg2 {[%clk 0:00:07]}  Nf4+ {[%clk 0:01:38]} 33. Kf3 {[%clk 0:00:07]}  e4+ {[%clk 0:01:32]} 34. Kg3 {[%clk 0:00:05]} 0-1


[Site "https://www.chess.com"]